bitfinex/quotes_BTCUSD_20250326
["timestamp","ask_amount","ask_price","bid_price","bid_amount"]
[1742980698431,0.35249578,88013.0,88012.0,0.001]
[1742980698817,0.227241,88012.0,88011.0,0.002]
[1742980699265,0.23476352,88012.0,88011.0,0.003]
[1742980699444,0.23476352,88012.0,88009.0,0.227247]
[1742980699642,0.23476452,88012.0,88009.0,0.227247]
[1742980699839,0.227244,88011.0,88009.0,0.227247]
[1742980700041,0.23476452,88012.0,88009.0,0.227247]
[1742980700247,0.0075243,88010.0,88009.0,0.227247]
[1742980700626,0.227239,88013.0,88010.0,0.227246]
[1742980701481,0.227242,88012.0,88009.0,0.227247]
[1742980701684,0.227242,88012.0,88009.0,0.002]
[1742980701914,0.08403596,88011.0,88009.0,0.002]
[1742980702388,0.08403596,88011.0,88008.0,0.227251]
[1742980702585,0.31127996,88011.0,88010.0,0.002]
[1742980702963,0.227246,88010.0,88007.0,0.227252]
[1742980703410,0.227246,88010.0,88009.0,0.005]
[1742980703742,0.227246,88010.0,88009.0,0.003]
[1742980704577,0.227246,88010.0,88007.0,0.227252]
[1742980704942,0.227246,88010.0,88007.0,0.230252]
[1742980705590,0.227245,88011.0,88007.0,0.230252]
[1742980705789,0.227245,88011.0,88010.0,0.0001697]
[1742980707065,0.25255769,88011.0,88010.0,0.0001697]
[1742980707269,0.23476607,88011.0,88010.0,0.0001697]
[1742980707532,0.23476607,88011.0,88010.0,0.0021697]
[1742980708328,0.34053353,88011.0,88010.0,0.0021697]
[1742980708905,0.23476607,88011.0,88010.0,0.0051697]
[1742980709189,0.25255774,88011.0,88010.0,0.0051697]
[1742980711191,0.25255774,88011.0,88010.0,0.015802]
[1742980712489,0.23476607,88011.0,88010.0,0.015802]
[1742980713604,0.24612807,88011.0,88010.0,0.015802]
[1742980713810,0.36038571,88011.0,88010.0,0.015802]
[1742980714014,0.24612807,88011.0,88010.0,0.015802]
[1742980714823,0.24612807,88011.0,88010.0,0.010802]
[1742980715020,0.24612807,88011.0,88010.0,0.012802]
[1742980716377,0.24612807,88011.0,88010.0,0.013802]
[1742980717057,0.26391965,88011.0,88010.0,0.013802]
[1742980717811,0.37817729,88011.0,88010.0,0.013802]
[1742980718417,0.26391965,88011.0,88010.0,0.013802]
[1742980722714,0.24612807,88011.0,88010.0,0.013802]
[1742980725960,0.24612807,88011.0,88010.0,0.0031697]
[1742980726954,0.26392026,88011.0,88010.0,0.0031697]
[1742980732599,0.24612807,88011.0,88010.0,0.0031697]
[1742980734816,0.36038571,88011.0,88010.0,0.0031697]
[1742980737975,0.36038571,88011.0,88010.0,0.0001697]
[1742980738153,0.36038571,88011.0,88010.0,0.0011697]
[1742980738355,0.36038571,88011.0,88010.0,0.0021697]
[1742980739277,0.37817793,88011.0,88010.0,0.0021697]
[1742980742138,0.26392029,88011.0,88010.0,0.0021697]
[1742980742623,0.24612807,88011.0,88010.0,0.0021697]
[1742980748917,0.26392046,88011.0,88010.0,0.0021697]
[1742980752626,0.24612807,88011.0,88010.0,0.0021697]
[1742980759148,0.26392031,88011.0,88010.0,0.0021697]
[1742980759756,0.37817795,88011.0,88010.0,0.0021697]
[1742980762475,0.36038571,88011.0,88010.0,0.0021697]
[1742980766836,0.37817798,88011.0,88010.0,0.0021697]
[1742980771229,0.26392034,88011.0,88010.0,0.0021697]
[1742980772595,0.24612807,88011.0,88010.0,0.0021697]
[1742980776885,0.2639207,88011.0,88010.0,0.0021697]
[1742980782532,0.24612807,88011.0,88010.0,0.0021697]
[1742980783591,0.24612807,88011.0,88010.0,0.0011697]
[1742980783969,0.24612807,88011.0,88010.0,0.0021697]
[1742980786636,0.36038571,88011.0,88010.0,0.0021697]
[1742980787042,0.37817848,88011.0,88010.0,0.0021697]
[1742980787693,0.36038571,88011.0,88010.0,0.0021697]
[1742980789361,0.37817839,88011.0,88010.0,0.0021697]
[1742980789538,0.26392075,88011.0,88010.0,0.0021697]
[1742980792608,0.24612807,88011.0,88010.0,0.0021697]
[1742980796871,0.2639208,88011.0,88010.0,0.0021697]
[1742980798523,0.3432208,88011.0,88010.0,0.0021697]
[1742980799297,0.6432208,88011.0,88010.0,0.0021697]
[1742980799503,0.75747844,88011.0,88010.0,0.0011697]
[1742980802578,0.73968571,88011.0,88010.0,0.0011697]
[1742980812419,0.66038571,88011.0,88010.0,0.0011697]
[1742980814709,0.73968571,88011.0,88010.0,0.0011697]
[1742980815508,0.73968571,88011.0,88010.0,0.0001697]
[1742980816945,0.75747997,88011.0,88010.0,0.0001697]
[1742980822606,0.73968571,88011.0,88010.0,0.0001697]
[1742980830095,0.75748033,88011.0,88010.0,0.0001697]
[1742980830270,0.75848033,88011.0,88010.0,0.0001697]
[1742980831803,0.76551518,88011.0,88010.0,0.0001697]
[1742980832581,0.74772056,88011.0,88010.0,0.0001697]
[1742980832785,0.74872056,88011.0,88010.0,0.0001697]
[1742980835713,1.16032056,88011.0,88010.0,0.0001697]
[1742980838522,1.04606292,88011.0,88010.0,0.0001697]
[1742980839947,1.06385757,88011.0,88010.0,0.0001697]
[1742980842637,1.04606292,88011.0,88010.0,0.0001697]
[1742980845543,1.06385769,88011.0,88010.0,0.0001697]
[1742980846824,1.04606292,88011.0,88010.0,0.0001697]
[1742980847032,1.16032056,88011.0,88010.0,0.0001697]
[1742980849530,1.178114,88011.0,88010.0,0.0001697]
[1742980853647,1.16032056,88011.0,88010.0,0.0001697]
[1742980856959,1.17811503,88011.0,88010.0,0.0001697]
[1742980862550,1.16032056,88011.0,88010.0,0.0001697]
[1742980866930,1.17811537,88011.0,88010.0,0.0001697]
[1742980869187,1.29237301,88011.0,88010.0,0.0001697]
[1742980870465,1.29137301,88011.0,88010.0,0.0001697]
[1742980870669,1.29037301,88011.0,88010.0,0.0001697]
[1742980870872,1.29337301,88011.0,88010.0,0.0001697]
[1742980871573,1.29237301,88011.0,88010.0,0.0001697]
[1742980871970,1.29437301,88011.0,88010.0,0.0001697]
[1742980872331,1.42441301,88011.0,88010.0,0.0001697]
[1742980872565,1.4066182,88011.0,88010.0,0.0001697]
[1742980873465,0.238657,87992.0,87991.0,0.01866625]
[1742980873899,0.55133458,87992.0,87991.0,0.01866625]
[1742980874619,0.55133458,87992.0,87991.0,0.02166625]
[1742980875035,0.55133458,87992.0,87991.0,0.02366625]
[1742980875235,0.67423989,87992.0,87991.0,0.01866625]
[1742980875438,0.78849753,87992.0,87991.0,0.01866625]
[1742980875638,0.78849753,87992.0,87991.0,0.01966625]
[1742980876917,0.78849753,87992.0,87991.0,0.01866625]
[1742980877269,0.78949753,87992.0,87991.0,0.01866625]
[1742980877787,0.80729397,87992.0,87991.0,0.01866625]
[1742980878208,0.80829397,87992.0,87991.0,0.01866625]
[1742980878586,0.57977869,87992.0,87991.0,0.01883585]
[1742980880415,0.56198225,87992.0,87991.0,0.01883585]
[1742980883622,0.31467758,87992.0,87991.0,0.01883585]
[1742980884230,0.54197058,87992.0,87991.0,0.01883585]
[1742980884579,0.31467758,87992.0,87991.0,0.01883585]
[1742980884923,0.54197058,87992.0,87991.0,0.01883585]
[1742980885264,0.31467758,87992.0,87991.0,0.01883585]
[1742980885621,0.54197058,87992.0,87991.0,0.01883585]
[1742980886161,0.55703545,87992.0,87991.0,0.01883585]
[1742980886761,0.54197058,87992.0,87991.0,0.01883585]
[1742980888908,0.55876619,87992.0,87991.0,0.01883585]
[1742980889109,0.55776619,87992.0,87991.0,0.01883585]
[1742980889320,0.33047319,87992.0,87991.0,0.24613085]
[1742980889526,0.03047319,87992.0,87991.0,0.25749485]
[1742980889731,0.01779561,87992.0,87991.0,0.25749485]
[1742980890061,0.01779561,87992.0,87991.0,0.45125249]
[1742980890263,0.01813501,87992.0,87991.0,0.62867249]
[1742980891476,0.01813501,87992.0,87991.0,0.63267249]
[1742980892110,0.01813501,87992.0,87991.0,0.64831481]
[1742980892432,0.0003394,87992.0,87991.0,0.64831481]
[1742980894965,0.0003394,87992.0,87991.0,0.51859481]
[1742980895194,0.0003394,87992.0,87991.0,0.64815481]
[1742980896958,0.01813318,87992.0,87991.0,0.64815481]
[1742980897159,0.01813318,87992.0,87991.0,1.23819481]
[1742980900445,0.0003394,87992.0,87991.0,1.23819481]
[1742980903989,0.0003394,87992.0,87991.0,1.22755249]
[1742980905108,0.0003394,87992.0,87991.0,1.24209334]
[1742980906938,0.01813219,87992.0,87991.0,1.23709334]
[1742980907343,0.01813219,87992.0,87991.0,1.24309334]
[1742980907655,0.01813219,87992.0,87991.0,1.23909334]
[1742980908038,0.01813219,87992.0,87991.0,1.24369334]
[1742980910964,0.01813219,87992.0,87991.0,1.11453334]
[1742980911163,0.01813219,87992.0,87991.0,1.24421334]
[1742980912664,0.0003394,87992.0,87991.0,1.24421334]
[1742980914113,0.0003394,87992.0,87991.0,1.02049249]
[1742980914271,0.0003394,87992.0,87991.0,1.15013249]
[1742980914873,0.0003394,87992.0,87991.0,1.10243249]
[1742980916524,0.0003394,87992.0,87991.0,1.10231249]
[1742980917145,0.0181323,87992.0,87991.0,1.10231249]
[1742980922475,0.0003394,87992.0,87991.0,1.10231249]
[1742980925664,0.0003394,87992.0,87991.0,1.19525334]
[1742980926588,0.0003394,87992.0,87991.0,1.23078224]
[1742980926994,0.0003394,87992.0,87991.0,1.19525334]
[1742980927392,0.0003394,87992.0,87991.0,1.19505334]
[1742980928487,0.0003394,87992.0,87991.0,1.11665334]
[1742980928689,0.0003394,87992.0,87991.0,1.10211249]
[1742980929350,0.01813317,87992.0,87991.0,1.10211249]
[1742980930165,0.01813317,87992.0,87991.0,1.09611249]
[1742980930974,0.01813317,87992.0,87991.0,1.10011249]
[1742980931332,0.01813317,87992.0,87991.0,0.97079249]
[1742980931529,0.01813317,87992.0,87991.0,1.10183249]
[1742980932113,0.01813317,87992.0,87991.0,1.10179249]
[1742980932512,0.0003394,87992.0,87991.0,1.10179249]
[1742980936932,0.01813334,87992.0,87991.0,0.97079249]
[1742980937164,0.01813334,87992.0,87991.0,1.10159249]
[1742980942477,0.0003394,87992.0,87991.0,1.10159249]
[1742980944693,0.0003394,87992.0,87991.0,1.11613334]
[1742980949534,0.01813318,87992.0,87991.0,1.11613334]
[1742980952557,0.0003394,87992.0,87991.0,1.11613334]
[1742980957101,0.01813301,87992.0,87991.0,1.11613334]
[1742980958097,0.01813301,87992.0,87991.0,1.11537334]
[1742980962497,0.0003394,87992.0,87991.0,1.11537334]
[1742980965134,0.0003394,87992.0,87991.0,1.12603962]
[1742980966902,0.01813301,87992.0,87991.0,1.12603962]
[1742980967328,0.01813301,87992.0,87991.0,1.20573962]
[1742980967533,0.01813301,87992.0,87991.0,1.29029007]
[1742980968269,0.01813301,87992.0,87991.0,1.28129007]
[1742980968519,0.01813301,87992.0,87991.0,1.28629007]
[1742980968711,0.01813301,87992.0,87991.0,1.29229007]
[1742980969170,0.01813301,87992.0,87991.0,1.28329007]
[1742980969373,0.01813301,87992.0,87991.0,1.24773962]
[1742980969618,0.01813301,87992.0,87991.0,1.25373962]
[1742980971187,0.01813301,87992.0,87991.0,1.24873962]
[1742980971587,0.01813301,87992.0,87991.0,1.25473962]
[1742980974962,0.01813301,87992.0,87991.0,1.29027381]
[1742980975437,0.01813301,87992.0,87991.0,1.25473962]
[1742980976266,0.0003394,87992.0,87991.0,1.25473962]
[1742980978157,4e-07,87992.0,87991.0,1.59526569]
[1742980979154,0.01779151,87992.0,87991.0,1.59526569]
[1742980979380,0.01779151,87992.0,87991.0,1.59438569]
[1742980979583,0.01775151,87992.0,87991.0,2.00218569]
[1742980980631,0.01775151,87992.0,87991.0,1.99718569]
[1742980980828,0.01775151,87992.0,87991.0,2.00218569]
[1742980983794,0.01809071,87992.0,87991.0,2.00218569]
[1742980986306,0.01809071,87992.0,87991.0,1.95162969]
[1742980986499,0.0003392,87992.0,87991.0,1.95162969]
[1742980986846,0.0003392,87992.0,87991.0,1.91748569]
[1742980989109,0.01813089,87992.0,87991.0,1.90681941]
[1742980990881,0.01813089,87992.0,87991.0,1.85781941]
[1742980991620,0.01813089,87992.0,87991.0,1.52329334]
[1742980992223,0.0003392,87992.0,87991.0,1.52329334]
[1742980992394,0.0003392,87992.0,87991.0,1.52341334]
[1742980996612,0.01813184,87992.0,87991.0,1.52341334]
[1742981002496,0.0003392,87992.0,87991.0,1.52341334]
[1742981002719,0.0003392,87992.0,87991.0,1.52369334]
[1742981002943,0.0003392,87992.0,87991.0,1.11589334]
[1742981003549,0.0003392,87992.0,87991.0,1.11585334]
[1742981005537,0.01813242,87992.0,87991.0,1.11585334]
[1742981010192,0.01813242,87992.0,87991.0,1.12650322]
[1742981015044,0.01813242,87992.0,87991.0,0.99598322]
[1742981015250,0.01813242,87992.0,87991.0,1.12602322]
[1742981016556,0.0003392,87992.0,87991.0,1.12602322]
[1742981019133,0.01813205,87992.0,87991.0,1.12602322]
[1742981020351,0.01813205,87992.0,87991.0,1.12582322]
[1742981026099,0.01813205,87992.0,87991.0,0.99598322]
[1742981026330,0.01813205,87992.0,87991.0,1.12554322]
[1742981027745,0.0003392,87992.0,87991.0,1.12554322]
[1742981030577,0.01813204,87992.0,87991.0,1.12554322]
[1742981032651,0.0003392,87992.0,87991.0,1.12554322]
[1742981033938,0.0003392,87992.0,87991.0,1.16108619]
[1742981035142,0.0003392,87992.0,87991.0,1.12554322]
[1742981035679,0.0181318,87992.0,87991.0,1.12554322]
[1742981038512,0.0181318,87992.0,87991.0,1.12522322]
[1742981040969,0.0181318,87992.0,87991.0,0.99598322]
[1742981041169,0.0181318,87992.0,87991.0,1.12550322]
[1742981042278,0.0181318,87992.0,87991.0,1.11088237]
[1742981042511,0.0181318,87992.0,87991.0,0.98144237]
[1742981042727,0.0181318,87992.0,87991.0,1.11088237]
[1742981044103,0.0181318,87992.0,87991.0,1.10488237]
[1742981044593,0.0181318,87992.0,87991.0,1.10988237]
[1742981045502,0.0181318,87992.0,87991.0,1.10976237]
[1742981046316,0.0003392,87992.0,87991.0,1.10976237]
[1742981048833,0.01813337,87992.0,87991.0,1.10976237]
[1742981049275,0.01813337,87992.0,87991.0,0.98044237]
[1742981049493,0.01813337,87992.0,87991.0,1.10960237]
[1742981051077,0.01813337,87992.0,87991.0,1.10360237]
[1742981051285,0.01813337,87992.0,87991.0,1.10860237]
[1742981051528,0.01813337,87992.0,87991.0,1.10360237]
[1742981051665,0.01813337,87992.0,87991.0,1.10760237]
[1742981053246,0.01813337,87992.0,87991.0,1.10748237]
[1742981056836,0.0003392,87992.0,87991.0,1.10748237]
[1742981059450,0.01813327,87992.0,87991.0,1.10748237]
[1742981066769,0.0003392,87992.0,87991.0,1.10748237]
[1742981069377,0.01813302,87992.0,87991.0,1.10748237]
[1742981072362,0.01813302,87992.0,87991.0,1.12202322]
[1742981072863,0.01813302,87992.0,87991.0,1.12130322]
[1742981073190,0.0003392,87992.0,87991.0,1.11226322]
[1742981073402,0.0003392,87992.0,87991.0,1.12326322]
[1742981075618,0.018132,87992.0,87991.0,1.20589926]
[1742981076583,0.018132,87992.0,87991.0,1.24266322]
[1742981076794,0.018132,87992.0,87991.0,1.27919477]
[1742981077211,0.018132,87992.0,87991.0,1.28519477]
[1742981078019,0.018132,87992.0,87991.0,1.27919477]
[1742981078384,0.018132,87992.0,87991.0,1.28519477]
[1742981078986,0.018132,87992.0,87991.0,1.27919477]
[1742981079416,0.018132,87992.0,87991.0,1.28519477]
[1742981080631,0.018132,87992.0,87991.0,1.3022373]
[1742981081149,1e-06,87992.0,87991.0,2.02344171]
[1742981081508,0.00012308,88014.0,88013.0,0.2386]
[1742981081684,0.00012308,88014.0,88013.0,0.49559849]
[1742981083123,0.00012308,88014.0,88013.0,0.49959849]
[1742981083730,0.00012308,88014.0,88013.0,0.5272909]
[1742981084280,0.00012308,88014.0,88013.0,0.5322909]
[1742981085579,0.00012308,88014.0,88013.0,0.5282909]
[1742981085989,0.00012308,88014.0,88013.0,0.5332909]
[1742981086370,0.00012308,88014.0,88013.0,0.5282909]
[1742981086571,0.00012308,88014.0,88013.0,0.5342909]
[1742981088785,0.01791208,88014.0,88013.0,0.5565067]
[1742981088902,0.01825128,88014.0,88013.0,0.5565067]
[1742981089102,0.01825128,88014.0,88013.0,0.53946417]
[1742981092416,0.00046228,88014.0,88013.0,0.53946417]
[1742981093909,0.00046228,88014.0,88013.0,1.12926417]
[1742981094267,0.00046228,88014.0,88013.0,1.00106417]
[1742981094549,0.00046228,88014.0,88013.0,1.12914417]
[1742981095884,0.01825127,88014.0,88013.0,1.12914417]
[1742981100023,0.01825127,88014.0,88013.0,1.12902417]
[1742981100873,0.01825127,88014.0,88013.0,1.14602841]
[1742981104689,0.00046228,88014.0,88013.0,1.14602841]
[1742981106669,0.00046228,88014.0,88013.0,1.14578841]
[1742981106827,0.08,88027.0,88026.0,0.238565]
[1742981107021,0.08,88027.0,88026.0,0.35282264]
[1742981107603,0.08896838,88027.0,88026.0,0.35282264]
[1742981107750,0.00896838,88027.0,88026.0,0.35282264]
[1742981107955,0.01778788,88027.0,88026.0,0.35282264]
[1742981108329,0.01778788,88027.0,88026.0,0.94258264]
[1742981108967,0.01778788,88027.0,88026.0,0.94558264]
[1742981109235,0.01778788,88027.0,88026.0,0.97323676]
[1742981109807,0.01778788,88027.0,88026.0,0.97523676]
[1742981113720,0.01812708,88027.0,88026.0,0.97523676]
[1742981114390,0.01812708,88027.0,88026.0,0.96387676]
[1742981114594,0.01812708,88027.0,88026.0,0.73667176]
[1742981116464,0.01812708,88027.0,88026.0,0.74803176]
[1742981116927,0.0003392,88027.0,88026.0,0.97523676]
[1742981119817,0.01812703,88027.0,88026.0,0.97523676]
[1742981120664,0.0003392,88027.0,88026.0,0.97523676]
[1742981130815,0.01812686,88027.0,88026.0,0.97523676]
[1742981132388,0.0003392,88027.0,88026.0,0.97523676]
[1742981133169,0.0003392,88027.0,88026.0,0.94758264]
[1742981134351,0.0003392,88027.0,88026.0,0.97530052]
[1742981135326,0.0181269,88027.0,88026.0,0.97530052]
[1742981139836,0.0181269,88027.0,88026.0,0.98984137]
[1742981140750,0.01125549,88038.0,88037.0,0.238535]
[1742981140960,0.02021897,88038.0,88037.0,0.47987264]
[1742981141194,0.0832,88039.0,88038.0,0.238532]
[1742981141328,0.0832,88039.0,88038.0,0.35278964]
[1742981141946,0.0948663,88039.0,88038.0,0.35278964]
[1742981143351,0.10382808,88039.0,88038.0,0.38050752]
[1742981143555,0.09216178,88039.0,88038.0,0.38050752]
[1742981144436,0.09216178,88039.0,88038.0,0.36914952]
[1742981144555,0.0832,88039.0,88038.0,0.36914952]
[1742981144968,0.09216897,88039.0,88038.0,0.36914952]
[1742981145169,0.10346056,88039.0,88038.0,0.36914952]
[1742981148028,0.12124733,88039.0,88038.0,0.36914952]
[1742981149388,0.12158653,88039.0,88038.0,0.36914952]
[1742981151254,0.10379976,88039.0,88038.0,0.36914952]
[1742981154221,0.10379976,88039.0,88038.0,0.49598952]
[1742981156977,0.12158581,88039.0,88038.0,0.49598952]
[1742981157284,0.10379976,88039.0,88038.0,0.49598952]
[1742981159238,0.12158645,88039.0,88038.0,0.49598952]
[1742981162651,0.10379976,88039.0,88038.0,0.49598952]
[1742981163508,0.10379976,88039.0,88038.0,0.26881552]
[1742981164244,0.33097176,88039.0,88038.0,0.26881552]
[1742981164851,0.33097176,88039.0,88038.0,0.25175836]
[1742981165791,0.34232976,88039.0,88038.0,0.25175836]
[1742981166139,0.33097176,88039.0,88038.0,0.25175836]
[1742981166951,0.34875852,88039.0,88038.0,0.25175836]
[1742981170294,0.46119071,88039.0,88038.0,0.25175836]
[1742981170571,0.47254871,88039.0,88038.0,0.25175836]
[1742981170809,0.34875852,88039.0,88038.0,0.25175836]
[1742981170942,0.12158652,88039.0,88038.0,0.25175836]
[1742981171316,0.10379976,88039.0,88038.0,0.25175836]
[1742981171447,0.10379976,88039.0,88038.0,0.47893236]
[1742981171652,0.10379976,88039.0,88038.0,0.35209236]
[1742981173790,0.02059976,88039.0,88038.0,0.35209236]
[1742981175517,0.02059976,88039.0,88038.0,0.36345036]
[1742981175747,0.09819976,88039.0,88038.0,0.35209236]
[1742981176157,0.08923079,88039.0,88038.0,0.35209236]
[1742981176367,0.09821098,88039.0,88038.0,0.35209236]
[1742981177290,0.00931939,88039.0,88038.0,0.38050132]
[1742981177732,0.0003392,88039.0,88038.0,0.45315339]
[1742981177929,0.0003392,88039.0,88038.0,0.56846696]
[1742981178724,0.0003392,88039.0,88038.0,0.57346696]
[1742981178952,0.01778401,88058.0,88051.0,0.238498]
[1742981179128,0.01778401,88058.0,88051.0,0.49381649]
[1742981179489,0.01150608,88069.0,88051.0,0.49381649]
[1742981179634,0.31150608,88069.0,88051.0,0.49381649]
[1742981180213,0.0004628,88052.0,88051.0,0.49381649]
[1742981180874,0.0004628,88052.0,88051.0,0.49881649]
[1742981181110,0.0004628,88052.0,88051.0,0.52652817]
[1742981181842,0.0004628,88052.0,88051.0,0.60732817]
[1742981182178,0.0004628,88052.0,88051.0,0.61332817]
[1742981182971,0.0004628,88052.0,88051.0,0.66092817]
[1742981184184,0.0004628,88052.0,88051.0,0.68396492]
[1742981184518,0.0004628,88052.0,88051.0,0.67796492]
[1742981184726,0.0004628,88052.0,88051.0,0.67296492]
[1742981184932,0.0004628,88052.0,88051.0,0.67896492]
[1742981185368,0.0004628,88052.0,88051.0,0.68496492]
[1742981187651,0.0004628,88052.0,88051.0,0.68996492]
[1742981188040,0.0004628,88052.0,88051.0,0.69451492]
[1742981188344,0.01824319,88052.0,88051.0,0.69451492]
[1742981188928,0.01824319,88052.0,88051.0,0.67746396]
[1742981189328,1.9e-07,88052.0,88051.0,0.67746396]
[1742981189495,0.0003392,88073.0,88053.0,0.243491]
[1742981189695,4e-07,88054.0,88053.0,0.44808949]
[1742981190517,4e-07,88054.0,88053.0,0.45875021]
[1742981190942,4e-07,88054.0,88053.0,0.46475021]
[1742981191777,4e-07,88054.0,88053.0,0.47075021]
[1742981193277,4e-07,88054.0,88053.0,0.87855021]
[1742981196385,4e-07,88054.0,88053.0,0.87871971]
[1742981197821,4e-07,88054.0,88053.0,1.20371971]
[1742981198024,4e-07,88066.0,88065.0,0.005]
[1742981198225,4e-07,88066.0,88065.0,0.78190672]
[1742981198478,4e-07,88066.0,88065.0,0.78005749]
[1742981199272,4e-07,88066.0,88065.0,0.78460549]
[1742981200414,4e-07,88066.0,88065.0,1.08460549]
[1742981200584,4e-07,88066.0,88065.0,1.68008549]
[1742981200781,2.2e-07,88066.0,88065.0,1.67408549]
[1742981200961,2.2e-07,88066.0,88065.0,1.68474621]
[1742981201161,2.2e-07,88066.0,88065.0,1.71356042]
[1742981201460,2.2e-07,88066.0,88065.0,1.71956042]
[1742981201657,2.2e-07,88066.0,88065.0,1.7280825]
[1742981202295,2.2e-07,88066.0,88065.0,1.7230825]
[1742981202481,2.2e-07,88066.0,88065.0,1.71456042]
[1742981202780,2.2e-07,88066.0,88065.0,1.84092042]
[1742981203000,2.2e-07,88066.0,88065.0,1.91672042]
[1742981203196,2.2e-07,88066.0,88065.0,1.92532945]
[1742981203605,0.0003394,88080.0,88079.0,0.036353]
[1742981203606,8.2e-07,88080.0,88079.0,0.036353]
[1742981203836,8.2e-07,88080.0,88079.0,0.747468]
[1742981204013,8.2e-07,88080.0,88079.0,0.74561949]
[1742981204367,8.2e-07,88080.0,88079.0,0.77972749]
[1742981204580,8.2e-07,88080.0,88079.0,0.79038821]
[1742981204795,8.2e-07,88080.0,88079.0,0.79638821]
[1742981205390,8.2e-07,88080.0,88079.0,0.8194934]
[1742981206216,8.2e-07,88080.0,88079.0,0.83088801]
[1742981206419,8.2e-07,88080.0,88079.0,0.82588801]
[1742981207075,8.2e-07,88080.0,88079.0,0.83688801]
[1742981208333,8.2e-07,88080.0,88079.0,1.24468801]
[1742981211981,8.2e-07,88080.0,88079.0,1.21968801]
[1742981212502,8.2e-07,88080.0,88079.0,1.18558001]
[1742981212932,8.2e-07,88080.0,88079.0,1.22089728]
[1742981213350,0.257749,88088.0,88087.0,0.2384]
[1742981213548,0.257749,88088.0,88087.0,0.49351849]
[1742981213750,0.26704596,88088.0,88087.0,0.49351849]
[1742981213948,5.6e-07,88092.0,88091.0,0.57792885]
[1742981214157,0.00011753,88092.0,88091.0,0.69218649]
[1742981216216,0.00011753,88092.0,88091.0,0.69718649]
[1742981216424,0.00011753,88092.0,88091.0,1.29712721]
[1742981216786,0.00011753,88092.0,88091.0,1.30312721]
[1742981217140,0.00011753,88092.0,88091.0,1.71092721]
[1742981218109,0.00011753,88092.0,88091.0,1.83724721]
[1742981218743,0.00011753,88092.0,88091.0,1.71092721]
[1742981219021,0.00011753,88092.0,88091.0,1.83724721]
[1742981219224,0.00011753,88092.0,88091.0,1.84587157]
[1742981223251,0.00011753,88092.0,88091.0,1.85041857]
[1742981226399,0.00011753,88092.0,88091.0,1.68592721]
[1742981226608,0.00011753,88092.0,88091.0,1.81220721]
[1742981230000,0.1291,88097.0,88096.0,0.011351]
[1742981230133,0.1291,88097.0,88096.0,0.36717449]
[1742981231278,0.1291,88097.0,88096.0,0.49745449]
[1742981231454,0.1291,88097.0,88096.0,0.50145449]
[1742981232747,0.1294392,88097.0,88096.0,0.50145449]
[1742981232951,0.1294392,88097.0,88096.0,0.52429943]
[1742981234531,0.1284292,88097.0,88096.0,0.52429943]
[1742981234817,0.1284292,88097.0,88096.0,0.39801943]
[1742981235017,0.1284292,88097.0,88096.0,0.38347858]
[1742981235188,0.1284292,88097.0,88096.0,0.50975858]
[1742981236196,0.1284292,88097.0,88096.0,0.5204193]
[1742981237148,0.14620144,88097.0,88096.0,0.5204193]
[1742981237981,0.14620144,88097.0,88096.0,0.50975858]
[1742981241338,0.15252882,88097.0,88096.0,0.50975858]
[1742981242179,0.15252882,88097.0,88096.0,0.38347858]
[1742981242396,0.13475658,88097.0,88096.0,0.50979858]
[1742981242602,0.13475658,88097.0,88096.0,0.52043603]
[1742981242819,0.1284292,88097.0,88096.0,0.52043603]
[1742981243290,0.13475658,88097.0,88096.0,0.52043603]
[1742981244483,0.13475658,88097.0,88096.0,0.25921509]
[1742981244831,0.13475658,88097.0,88096.0,0.13306469]
[1742981245000,0.13475658,88097.0,88096.0,0.25938469]
[1742981245407,0.36177858,88097.0,88096.0,0.25938469]
[1742981245582,0.13475658,88097.0,88096.0,0.48640969]
[1742981247006,0.15252901,88097.0,88096.0,0.49776069]
[1742981248687,0.14620163,88097.0,88096.0,0.49776069]
[1742981249088,0.1524701,88097.0,88096.0,0.49776069]
[1742981251384,0.1524701,88097.0,88096.0,0.49376069]
[1742981252039,0.1524701,88097.0,88096.0,0.49776069]
[1742981252563,0.13469767,88097.0,88096.0,0.49776069]
[1742981253771,0.13469767,88097.0,88096.0,0.37144069]
[1742981254239,0.13469767,88097.0,88096.0,0.48640969]
[1742981254789,0.13469767,88097.0,88096.0,1.07564969]
[1742981254991,0.13469767,88097.0,88096.0,1.08700069]
[1742981256672,0.1284292,88097.0,88096.0,1.08700069]
[1742981256881,0.14620161,88097.0,88096.0,1.08700069]
[1742981257037,0.15245813,88097.0,88096.0,1.08700069]
[1742981257809,0.14620161,88097.0,88096.0,1.08700069]
[1742981258317,0.15245813,88097.0,88096.0,1.08700069]
[1742981258497,0.14620161,88097.0,88096.0,1.08700069]
[1742981258933,0.15245813,88097.0,88096.0,1.08700069]
[1742981259343,0.14620161,88097.0,88096.0,1.08700069]
[1742981259569,0.02433924,88097.0,88096.0,1.08700069]
[1742981259907,0.01811161,88097.0,88096.0,1.08700069]
[1742981262585,0.0003392,88097.0,88096.0,1.08700069]
[1742981264339,0.0003392,88097.0,88096.0,1.10154154]
[1742981265192,0.0003392,88097.0,88096.0,1.17864154]
[1742981265422,0.0003392,88097.0,88096.0,1.21410273]
[1742981265814,0.0003392,88097.0,88096.0,1.17464154]
[1742981266025,0.0003392,88097.0,88096.0,1.17064154]
[1742981266226,0.0003392,88097.0,88096.0,1.17864154]
[1742981266810,0.0003392,88097.0,88096.0,1.58644154]
[1742981269467,0.0003392,88097.0,88096.0,1.62189479]
[1742981272205,0.0003392,88097.0,88096.0,1.92189479]
[1742981273029,0.0003392,88097.0,88096.0,1.91389479]
[1742981273236,0.0003392,88097.0,88096.0,1.91989479]
[1742981273457,0.0003392,88097.0,88096.0,1.92589479]
[1742981273981,0.0003392,88097.0,88096.0,1.91989479]
[1742981274325,0.0003392,88097.0,88096.0,1.92589479]
[1742981274525,0.0003392,88097.0,88096.0,1.89044154]
[1742981275167,0.0003392,88097.0,88096.0,1.88444154]
[1742981275687,0.0003392,88097.0,88096.0,1.89040154]
[1742981278095,0.0003392,88097.0,88096.0,1.68702154]
[1742981278292,0.0003392,88097.0,88096.0,1.81330154]
[1742981279274,0.0003392,88097.0,88096.0,1.68702154]
[1742981279453,0.0003392,88097.0,88096.0,1.81330154]
[1742981281605,0.0003392,88097.0,88096.0,1.68702154]
[1742981281802,0.0003392,88097.0,88096.0,1.81330154]
[1742981283954,0.0003392,88097.0,88096.0,1.8487104]
[1742981286776,0.0003392,88097.0,88096.0,1.8537104]
[1742981289691,0.0003392,88097.0,88096.0,1.9317104]
[1742981290441,2e-07,88097.0,88096.0,1.9257104]
[1742981290850,2e-07,88097.0,88096.0,1.9317104]
[1742981291040,2e-07,88097.0,88096.0,1.9257104]
[1742981291239,0.002,88099.0,88098.0,0.543369]
[1742981291502,0.002,88099.0,88098.0,0.6930355]
[1742981291699,0.002,88099.0,88098.0,0.70757635]
[1742981292697,0.002,88099.0,88098.0,0.71357635]
[1742981293291,0.002,88099.0,88098.0,0.71957635]
[1742981294290,0.002,88099.0,88098.0,0.7302138]